Cogmind - Beta 12 @@@ ROGUE MODE // 2023.03.07 @ 06:07:11 Player: ArabianSandBoa Result: Self-destructed Performance ------------- Evolutions (2) 1000 Regions Visited (11) 2200 Robots Destroyed (101) 505 Value Destroyed (4517) 4517 Prototype IDs (40) 800 Alien Tech Used (0) 0 Bonus (3230) 3230 TOTAL SCORE: 12252 Bonus ------- High Alert Combat Kills 927 Follower Combat Kills 103 Entered Garrisons 400 Used RIF Installer 1500 Aligned with FarCom 300 Cogmind --------- Core Integrity 256/550 Matter 270/300 Energy 160/160 System Corruption 5% Temperature Cool (14) Movement Walking (184) Ox1 Location -8/Garrison Parts ------- > --- POWER (1) -------- Light Nuclear Core > --- PROPULSION (4) --- Aluminum Leg Aluminum Leg Aluminum Leg Potential Leg > --- UTILITY (4) ------ High-capacity Storage Unit Advanced Targeting Computer Particle Charger Hardlight Generator > --- WEAPON (2) ------- Cooled Particle Cannon Cooled Particle Cannon > --- INVENTORY (20) --- Advanced Targeting Computer Recoil Stabilizer Reflective Plating Relay Coupler [NC] (22) Relay Coupler [Swarmer] (31) Relay Coupler [Grunt] (28) Relay Coupler [Grunt] (25) Relay Coupler [Sentry] (22) Relay Coupler [Sentry] (23) Relay Coupler [Sentry] (23) Relay Coupler [Specialist] (19) Thief Drone Bay Enhanced Autogun Enhanced Autogun Enhanced Autogun Enhanced Autogun Advanced EMP Blaster Peak State ------------ > --- POWER ------------ Cooled Ion Engine > --- PROPULSION ------- Carbon-fiber Leg Titanium Leg Potential Leg Potential Leg > --- UTILITY ---------- High-capacity Storage Unit Reactive Plating Hacking Suite System Shield > --- WEAPON ----------- Cooled Particle Cannon Cooled Particle Cannon > --- INVENTORY -------- Advanced Targeting Computer Advanced Targeting Computer Particle Charger Reactive Plating Reflective Plating Hardlight Generator Relay Coupler [NC] Relay Coupler [Swarmer] Relay Coupler [Grunt] Relay Coupler [Grunt] Relay Coupler [Sentry] Relay Coupler [Sentry] Relay Coupler [Sentry] Relay Coupler [Demolisher] Relay Coupler [Specialist] Relay Coupler [Hunter] Relay Coupler [Behemoth] Thief Drone Bay Enhanced Autogun Rocket Launcher [Rating: 56] Favorites ----------- Power Light Nuclear Core Engine Ion Engine Power Core Light Nuclear Core Propulsion Potential Leg Treads Light Treads Leg Potential Leg Wheel Wheel Utility High-capacity Storage Unit Device Heat Sink Storage High-capacity Storage Unit Processor Signal Interpreter Hackware Hacking Suite Protection Improved Medium Armor Plating Weapon Cooled Particle Cannon Energy Gun Beam Rifle Energy Cannon Cooled Particle Cannon Ballistic Gun Assault Rifle Ballistic Cannon Assault Cannon Launcher Rocket Launcher Build | -11 -10 -10 -9 -9 -9 -8 -8 -8 -8 -8 -8 ------- Run | Jun Mat Min Mat Min Exi Min Mat Gar Mat Sto Gar Slots Evolved 4 | . . . 2 . . . 2 . . . . Power . | . . . . . . . . . . . . Propulsion 2 | . . . 1 . . . 1 . . . . Utility 2 | . . . 1 . . . 1 . . . . Weapon . | . . . . . . . . . . . . Parts Attached 80 | 3 1 1 5 2 4 2 1 17 18 17 9 Power 9 | . . . 1 . 1 1 . . 3 1 2 Engine 5 | . . . 1 . 1 . . . 2 1 . Core 4 | . . . . . . 1 . . 1 . 2 Reactor . | . . . . . . . . . . . . Propulsion 15 | 2 . 1 2 . 3 . . 1 2 . 4 Treads 4 | . . 1 1 . 1 . . 1 . . . Leg 8 | . . . . . 2 . . . 2 . 4 Wheel 3 | 2 . . 1 . . . . . . . . Hover . | . . . . . . . . . . . . Flight . | . . . . . . . . . . . . Utility 24 | 1 1 . 1 1 . . 1 8 4 4 3 Device 6 | 1 . . . 1 . . . 1 1 . 2 Storage 3 | . 1 . . . . . . 1 . 1 . Processor 2 | . . . 1 . . . . . . . 1 Hackware 3 | . . . . . . . . 1 1 1 . Protection 10 | . . . . . . . 1 5 2 2 . Artifact . | . . . . . . . . . . . . Weapon 32 | . . . 1 1 . 1 . 8 9 12 . Energy Gun 10 | . . . 1 . . . . 2 4 3 . Energy Cannon 6 | . . . . . . . . . 2 4 . Ballistic Gun 7 | . . . . 1 . . . 3 . 3 . Ballistic Cannon 3 | . . . . . . . . . 3 . . Launcher 6 | . . . . . . 1 . 3 . 2 . Special Weapon . | . . . . . . . . . . . . Impact Weapon . | . . . . . . . . . . . . Slashing Weapon . | . . . . . . . . . . . . Piercing Weapon . | . . . . . . . . . . . . Special Melee Weapon . | . . . . . . . . . . . . Unidentified Prototypes 9 | . . . . . . . . . 2 7 . Parts Lost 11 | . . 1 1 1 . . . 1 3 1 3 Power 2 | . . . . . . . . . 2 . . Propulsion 6 | . . 1 1 . . . . . . 1 3 Utility 2 | . . . . 1 . . . . 1 . . Weapon 1 | . . . . . . . . 1 . . . Highest Loss Streak 2 | . . 1 1 1 . . . 1 1 1 2 To Critical Strikes . | . . . . . . . . . . . . Average Slot Usage (%) 90 | . 100 99 87 88 91 88 81 81 95 93 92 Engine 6 | . 14 14 11 11 11 8 . . 3 9 6 Core 3 | . . . . . . 2 9 9 3 . 2 Treads 3 | . . 2 11 22 7 . . 1 3 . . Leg 19 | . . . . . 12 22 18 18 31 30 29 Wheel 3 | . 28 25 11 11 3 . . . . . . Device 6 | . 14 14 11 9 11 11 9 3 6 . 3 Storage 9 | . 14 14 11 11 11 11 9 9 9 9 9 Processor 3 | . . . 9 11 11 11 9 1 . . . Hackware 8 | . . . . . . . . 8 11 17 16 Protection 6 | . . . . . . . 9 12 9 9 6 Energy Gun 4 | . . . 8 11 11 11 9 3 5 . . Energy Cannon 4 | . . . . . . . . . 3 17 18 Ballistic Gun 6 | . 28 28 12 2 11 4 . 9 1 . . Ballistic Cannon 1 | . . . . . . . . . 8 . . Launcher 1 | . . . . . . 6 9 5 . . . Naked Turns . | . . . . . . . . . . . . Heaviest Build 72 | 15 50 50 51 49 51 53 60 66 71 72 72 Greatest Support 92 | 20 20 20 20 10 60 60 60 60 92 77 80 Greatest Overweight (x) 16 | . 2 4 5 4 16 . . 1 . . 1 Average Overweight (x) . | . 1 2 4 4 1 . . . . . . Largest Inventory Capacity 20 | 8 20 20 20 20 20 20 20 20 20 20 20 Average Capacity 19 | 8 17 20 20 20 20 20 20 20 20 20 20 Most Carried 20 | 8 7 13 19 20 20 18 17 20 20 20 20 Average Carried 17 | 6 5 10 14 19 18 17 17 17 19 19 19 Final Capacity 20 | 8 20 20 20 20 20 20 20 20 20 20 20 Final Carried 20 | 5 6 12 19 19 17 18 17 19 20 20 17 Class Distribution -------------------- 52% | Mutant 26% | Hacker-Mutant 20% | Scavenger-Mutant Dominant Class ---------------- Mutant | -10/Materials Mutant | -10/Mines Mutant | -9/Materials Scavenger-Mutant | -9/Mines Mutant | -9/Exiles Mutant | -8/Mines Mutant | -8/Materials Mutant | -8/Garrison Mutant | -8/Materials Hacker-Mutant | -8/Storage Hacker-Mutant | -8/Garrison Resources | -11 -10 -10 -9 -9 -9 -8 -8 -8 -8 -8 -8 ----------- Run | Jun Mat Min Mat Min Exi Min Mat Gar Mat Sto Gar Matter Collected 1983 | 284 . 87 93 23 . 66 . 503 482 395 50 Remotely . | . . . . . . . . . . . . Salvage Created 3210 | 108 . 96 221 89 . 139 . 530 901 641 485 Parts 217 | 5 . 10 20 4 . 18 . 31 63 46 20 Haulers Intercepted 4 | . . . . . . . . . 2 2 . Recyclers Shooed 3 | 1 . . . . . . . . 2 . . Parts Field Recycled . | . . . . . . . . . . . . Retrieved Matter . | . . . . . . . . . . . . Parts Self-Destructed . | . . . . . . . . . . . . Prevented . | . . . . . . . . . . . . Kills | -11 -10 -10 -9 -9 -9 -8 -8 -8 -8 -8 -8 ------- Run | Jun Mat Min Mat Min Exi Min Mat Gar Mat Sto Gar Combat Hostiles Destroyed 86 | . . 8 4 2 . 8 . 23 17 14 10 Guns 24 | . . 8 4 2 . . . 6 4 . . Cannons 28 | . . . . . . . . . 11 8 9 AOE 31 | . . . . . . 8 . 17 1 5 . Classes Destroyed 14 | 2 . 3 4 . . 2 . . 2 1 . Worker 2 | . . . . . . . . . . 2 . Builder 3 | . . . . . . 2 . . 1 . . Tunneler 1 | 1 . . . . . . . . . . . Hauler 4 | . . . . . . . . . 2 2 . Recycler 1 | 1 . . . . . . . . . . . Mechanic 1 | . . . . . . . . . 1 . . Operator 1 | . . . 1 . . . . . . . . Watcher 3 | . . . 1 . . . . . 2 . . Swarmer 29 | . . 5 . . . 4 . 10 4 6 . Grunt 32 | . . . 2 2 . 3 . 10 6 1 8 Sentry 18 | . . . 2 . . . . 3 6 7 . Demolisher 2 | . . 2 . . . . . . . . . Hunter 4 | . . . . . . 1 . . 1 . 2 Assembled 1 | . . 1 . . . . . . . . . Best Kill Streak 8 | 1 . 3 5 2 . 6 . 7 5 8 3 Combat Bots Only 7 | . . 3 3 2 . 4 . 7 5 7 3 Max Kills in Single Turn 4 | 1 . 2 1 1 . 4 . 3 2 2 1 Gunslinging 1 | . . 1 . . . . . . . . . Exploded 4 | . . . . . . 4 . 3 1 2 . Melee . | . . . . . . . . . . . . Uniques/NPCs Destroyed . | . . . . . . . . . . . . Combat | -11 -10 -10 -9 -9 -9 -8 -8 -8 -8 -8 -8 -------- Run | Jun Mat Min Mat Min Exi Min Mat Gar Mat Sto Gar Damage Taken 3949 | . . 357 257 148 . 15 . 948 988 304 932 Core 555 | . . 149 70 42 . . . 86 91 5 112 Absorbed by Shields 44 | . . . . . . . . . . . 44 Core Remaining (%) 70 | 100 . 40 . . . 72 . . . . . Volleys Fired 267 | 9 . 12 16 8 . 4 . 56 75 39 48 Largest 2 | 2 . 2 2 2 . 1 . 2 2 2 2 Hottest 180 | 40 . 40 76 76 . 33 . 79 90 90 180 Shots Fired 466 | 18 . 24 32 14 . 4 . 78 137 63 96 Gun 185 | 18 . 24 32 14 . . . 57 40 . . Cannon 249 | . . . . . . . . . 97 56 96 Launcher 32 | . . . . . . 4 . 21 . 7 . Special . | . . . . . . . . . . . . Kinetic 182 | 18 . 24 16 6 . . . 49 69 . . Thermal 218 | . . . 16 8 . . . 8 34 56 96 Explosive 32 | . . . . . . 4 . 21 . 7 . Electromagnetic 34 | . . . . . . . . . 34 . . Robot Hit Streak 14 | 2 . 7 8 5 . 1 . 11 14 5 12 Robot Miss Streak 4 | 3 . 1 2 2 . 2 . 3 4 3 2 Penetration Max . | . . . . . . . . . . . . Secondary Targets 5 | . . 2 2 1 . . . . . . . Max Gunslinging Chain 1 | . . 1 1 1 . . . . . . . Shots Hit Robots 241 | 8 . 15 20 8 . 1 . 46 69 23 51 Core Hits 150 | 2 . 10 9 5 . 15 . 41 32 19 17 Critical Kills 1 | . . . . . . . . . . 1 . Critical Parts Destroyed 2 | 1 . . . . . . . 1 . . . Critical Strikes 8 | 1 . . . 1 . . . 3 2 1 . Burn 3 | . . . . 1 . . . 2 . . . Meltdown 1 | . . . . . . . . . . 1 . Destroy 2 | 1 . . . . . . . 1 . . . Blast 2 | . . . . . . . . . 2 . . Melee Attacks . | . . . . . . . . . . . . Impact . | . . . . . . . . . . . . Slashing . | . . . . . . . . . . . . Piercing . | . . . . . . . . . . . . Sneak Attacks . | . . . . . . . . . . . . Combat Hostiles . | . . . . . . . . . . . . Follow-up Attacks . | . . . . . . . . . . . . Damage Inflicted 7266 | 98 . 194 290 110 . 641 . 1827 1632 1067 1407 Guns 1866 | 98 . 194 290 110 . . . 545 629 . . Cannons 2809 | . . . . . . . . . 805 597 1407 Explosions 2591 | . . . . . . 641 . 1282 198 470 . Melee . | . . . . . . . . . . . . Ramming . | . . . . . . . . . . . . Kinetic 1560 | 98 . 194 114 38 . . . 457 659 . . Thermal 2763 | . . . 176 72 . . . 88 423 597 1407 Explosive 2393 | . . . . . . 641 . 1282 . 470 . Electromagnetic 550 | . . . . . . . . . 550 . . Impact . | . . . . . . . . . . . . Slashing . | . . . . . . . . . . . . Piercing . | . . . . . . . . . . . . Highest Corruption 5 | . . . . . . . . . . 5 5 Average Corruption 4 | . . . . . . . . . . 4 5 Corruption Purged . | . . . . . . . . . . . . Corruption Blocked . | . . . . . . . . . . . . Effects 29 | . . . . . . . . . . 12 17 Message Errors 8 | . . . . . . . . . . 3 5 Matter Fused 5 | . . . . . . . . . . 5 . Heat Flow Errors 2 | . . . . . . . . . . . 2 Energy Discharges 5 | . . . . . . . . . . 2 3 Parts Fused 1 | . . . . . . . . . . . 1 Data Loss (minor) 4 | . . . . . . . . . . . 4 Data Loss (major) 1 | . . . . . . . . . . . 1 Alerts 1 | . . . . . . . . . . . 1 Weapon Failures 2 | . . . . . . . . . . 2 . Overload Shots 4 | . . . . . . . . . . 2 2 Overflow Damage 119 | . . . . . . 5 . 33 54 10 17 Projectiles 81 | . . . . . . . . . 54 10 17 Explosions 38 | . . . . . . 5 . 33 . . . Melee . | . . . . . . . . . . . . Knockbacks 6 | . . . . . . . . . 6 . . Impact . | . . . . . . . . . . . . Kinetic 5 | . . . . . . . . . 5 . . Secondary 1 | . . . . . . . . . 1 . . Self-Inflicted Damage 165 | . . . . . . . . 71 49 45 . Shots 5 | . . . . . . . . 3 1 1 . Rammed . | . . . . . . . . . . . . Targets Rammed . | . . . . . . . . . . . . Kicked . | . . . . . . . . . . . . Crushed . | . . . . . . . . . . . . Highest Temperature 160 | . . . 70 94 . . . 67 104 54 160 Average Temperature 31 | . . . 26 43 . . . 20 26 15 43 Received Heat Transfer 1345 | . . . 99 84 . 9 . 387 297 54 415 Siege Activations . | . . . . . . . . . . . . Robots Corrupted 1 | . . . . . . . . . 1 . . Combat Hostiles 1 | . . . . . . . . . 1 . . Parts Fried 3 | . . . . . . . . . 3 . . Impact Corruptions . | . . . . . . . . . . . . Robots Melted 2 | . . . . . . . . . . 1 1 Combat Hostiles 2 | . . . . . . . . . . 1 1 Parts Melted 13 | . . . 2 3 . . . 1 . 3 4 Heat Transferred 4307 | . . . 444 259 . . . 370 496 814 1924 Parts Sabotaged . | . . . . . . . . . . . . Parts Stolen . | . . . . . . . . . . . . Parts Stripped . | . . . . . . . . . . . . Power Chain Reactions 3 | . . . . . . . . . 3 . . Missiles Intercepted . | . . . . . . . . . . . . Alert | -11 -10 -10 -9 -9 -9 -8 -8 -8 -8 -8 -8 ------- Run | Jun Mat Min Mat Min Exi Min Mat Gar Mat Sto Gar Peak Influence 1236 | 10 6 147 299 171 . 224 87 1236 1019 920 931 Initial 602 | . 6 1 57 116 . . 87 56 602 425 539 Average 597 | 5 6 72 138 124 . 90 87 811 823 669 776 Maximum Alert Level 4 | . . . 1 . . 1 . 4 3 3 3 Low Security (%) 25 | 100 100 100 74 100 . 74 100 3 . . . Level 1 3 | . . . 25 . . 25 . 3 . . . Level 2 18 | . . . . . . . . 24 13 42 30 Level 3 47 | . . . . . . . . 48 86 57 69 Level 4 5 | . . . . . . . . 20 . . . Level 5 . | . . . . . . . . . . . . High Security . | . . . . . . . . . . . . Max Security . | . . . . . . . . . . . . Squads Dispatched 11 | . . . 3 . . 1 . . 6 1 . Investigation 5 | . . . 2 . . . . . 3 . . Extermination . | . . . . . . . . . . . . Reinforcement 6 | . . . 1 . . 1 . . 3 1 . Assault . | . . . . . . . . . . . . Garrison . | . . . . . . . . . . . . Intercept . | . . . . . . . . . . . . Searches Triggered . | . . . . . . . . . . . . Construction Impeded 1 | . . . . . . 1 . . . . . Haulers Reinforced . | . . . . . . . . . . . . Active Scanning Responses . | . . . . . . . . . . . . Cargo Convoy Interrupts . | . . . . . . . . . . . . Stealth | -11 -10 -10 -9 -9 -9 -8 -8 -8 -8 -8 -8 --------- Run | Jun Mat Min Mat Min Exi Min Mat Gar Mat Sto Gar Distress Signals 5 | . . 1 3 . . . . . 1 . . Communications Jammed . | . . . . . . . . . . . . Distress Signals . | . . . . . . . . . . . . Times Spotted 116 | . . 9 13 3 . 7 . 26 30 13 15 Peak Tracking Total 7 | . . 3 6 3 . 4 . 7 5 4 4 Tactical Retreats 6 | . . . 1 1 . . . . 3 1 . Traps | -11 -10 -10 -9 -9 -9 -8 -8 -8 -8 -8 -8 ------- Run | Jun Mat Min Mat Min Exi Min Mat Gar Mat Sto Gar Traps Triggered 9 | . . . . . . . . 3 2 3 1 Indirectly . | . . . . . . . . . . . . Trap Hack Attempts . | . . . . . . . . . . . . Triggered . | . . . . . . . . . . . . Disarmed . | . . . . . . . . . . . . Reprogrammed . | . . . . . . . . . . . . Reused . | . . . . . . . . . . . . Traps Extracted . | . . . . . . . . . . . . Installed . | . . . . . . . . . . . . Triggered . | . . . . . . . . . . . . Most Traps Carried 3 | . . . . 3 3 3 3 3 . . . Exploded 3 | . . . . . . . . 3 . . . Machines | -11 -10 -10 -9 -9 -9 -8 -8 -8 -8 -8 -8 ---------- Run | Jun Mat Min Mat Min Exi Min Mat Gar Mat Sto Gar Machines Disabled 18 | . . . 1 . . . . 7 2 5 3 Max in Single Turn 1 | . . . 1 . . . . 1 1 1 1 Garrison Relay 6 | . . . . . . . . 4 . . 2 Phase Generator 1 | . . . . . . . . 1 . . . Machines Repaired . | . . . . . . . . . . . . Machines Sabotaged . | . . . . . . . . . . . . Overloaded Fab Kills . | . . . . . . . . . . . . Hacking | -11 -10 -10 -9 -9 -9 -8 -8 -8 -8 -8 -8 --------- Run | Jun Mat Min Mat Min Exi Min Mat Gar Mat Sto Gar Machines Accessed 25 | . . 1 3 1 1 . 1 5 5 5 3 Terminals 19 | . . 1 2 . . . . 5 5 3 3 Fabricators . | . . . . . . . . . . . . Repair Stations . | . . . . . . . . . . . . Recycling Units 2 | . . . 1 . . . . . . 1 . Scanalyzers . | . . . . . . . . . . . . Garrison Access 2 | . . . . . . . 1 . . 1 . Total Hacks 68 | . . 3 10 1 1 . 1 13 23 9 7 Successful 34 | . . 2 5 1 1 . 1 4 10 6 4 Failed 34 | . . 1 5 . . . . 9 13 3 3 Catastrophic 3 | . . . 1 . . . . 1 1 . . Database Lockouts . | . . . . . . . . . . . . Manual 21 | . . 2 7 . 1 . . 1 6 . 4 Terminals 56 | . . 3 5 . . . . 13 23 5 7 Fabricators . | . . . . . . . . . . . . Repair Stations . | . . . . . . . . . . . . Recycling Units 8 | . . . 5 . . . . . . 3 . Scanalyzers . | . . . . . . . . . . . . Garrison Access 2 | . . . . . . . 1 . . 1 . Terminal Hacks 25 | . . 2 1 1 1 . . 3 10 4 3 Robot Analysis 4 | . . 1 . . . . . . 2 1 . Prototype ID Bank 5 | . . . 1 . . . . . 4 . . Open Door 4 | . . . . 1 . . . 1 . 2 . Branch Access Points 2 | . . . . . . . . . 2 . . Emergency Access Points 1 | . . . . . . . . . . . 1 Zone Layout 4 | . . 1 . . . . . . 2 1 . Garrison Registry 2 | . . . . . . . . 1 . . 1 Patrol Navigation 1 | . . . . . . . . 1 . . . Security Stations 1 | . . . . . . . . . . . 1 EX-Prototype ID Bank 1 | . . . . . 1 . . . . . . Fabricator Hacks . | . . . . . . . . . . . . Repair Station Hacks . | . . . . . . . . . . . . Recycling Unit Hacks 2 | . . . 1 . . . . . . 1 . Report Inventory 2 | . . . 1 . . . . . . 1 . Scanalyzer . | . . . . . . . . . . . . Garrison Access Hacks 2 | . . . . . . . 1 . . 1 . Unlock Access 2 | . . . . . . . 1 . . 1 . Unauthorized Hacks 5 | . . . 3 . . . . 1 . . 1 Terminals 2 | . . . . . . . . 1 . . 1 Botnet 1 | . . . . . . . . . . . 1 Override 1 | . . . . . . . . 1 . . . Fabricators . | . . . . . . . . . . . . Repair Stations . | . . . . . . . . . . . . Recycling Units 3 | . . . 3 . . . . . . . . Reject 1 | . . . 1 . . . . . . . . Mask 1 | . . . 1 . . . . . . . . Tunnel 1 | . . . 1 . . . . . . . . Scanalyzers . | . . . . . . . . . . . . Garrison Access . | . . . . . . . . . . . . Data Cores Recovered 1 | . . . 1 . . . . . . . . Used . | . . . . . . . . . . . . Hacking Detections 16 | . . 1 3 . . . . 4 4 2 2 Full Trace Events 6 | . . . 1 . . . . 2 2 . 1 Feedback Events . | . . . . . . . . . . . . Feedback Blocked . | . . . . . . . . . . . . Robot Schematics Acquired . | . . . . . . . . . . . . Robots Built . | . . . . . . . . . . . . Authchips . | . . . . . . . . . . . . Time . | . . . . . . . . . . . . Total Robot Build Rating . | . . . . . . . . . . . . Part Schematics Acquired . | . . . . . . . . . . . . Parts Built . | . . . . . . . . . . . . Authchips . | . . . . . . . . . . . . Time . | . . . . . . . . . . . . Total Part Build Rating . | . . . . . . . . . . . . Parts Repaired . | . . . . . . . . . . . . Time . | . . . . . . . . . . . . Parts Recycled . | . . . . . . . . . . . . Recycled Matter . | . . . . . . . . . . . . Retrieved Matter . | . . . . . . . . . . . . Retrieved Components . | . . . . . . . . . . . . Parts Scanalyzed . | . . . . . . . . . . . . Part Schematics Acquired . | . . . . . . . . . . . . Parts Damaged . | . . . . . . . . . . . . Bothacking | -11 -10 -10 -9 -9 -9 -8 -8 -8 -8 -8 -8 ------------ Run | Jun Mat Min Mat Min Exi Min Mat Gar Mat Sto Gar Used RIF Installer 3 | . . . . . . . . 1 . . 2 Threat Obfuscator 1 | . . . . . . . . . . . 1 Patrol Navigation 1 | . . . . . . . . . . . 1 Robots Hacked . | . . . . . . . . . . . . Non-combat . | . . . . . . . . . . . . Combat . | . . . . . . . . . . . . Robot Hacks Applied . | . . . . . . . . . . . . Relay Couplers Released 22 | . . . . . . . . 14 . . 8 Machine Destruction 22 | . . . . . . . . 14 . . 8 Fabnet Peak Effective % . | . . . . . . . . . . . . Robots Rewired 2 | . . . . . . . . 2 . . . Allies Hacked . | . . . . . . . . . . . . Hacks Repelled . | . . . . . . . . . . . . Allies | -11 -10 -10 -9 -9 -9 -8 -8 -8 -8 -8 -8 -------- Run | Jun Mat Min Mat Min Exi Min Mat Gar Mat Sto Gar Total Allies 3 | . . 1 . . . . . 2 . . . Largest Group 2 | . . 1 . . . . . 2 1 . . Highest-Rated Group 51 | . . 31 . . . . . 51 20 . . Highest-Rated Ally 31 | . . 31 . . . . . 31 20 . . Total Orders . | . . . . . . . . . . . . Ally Attacks 18 | . . 2 . . . . . 16 . . . Total Damage 287 | . . 42 . . . . . 245 . . . Kills 3 | . . . . . . . . 3 . . . Allies Corrupted . | . . . . . . . . . . . . Allies Melted . | . . . . . . . . . . . . Intel | -11 -10 -10 -9 -9 -9 -8 -8 -8 -8 -8 -8 ------- Run | Jun Mat Min Mat Min Exi Min Mat Gar Mat Sto Gar Robot Analysis Total 4 | . . 1 . . . . . . 2 1 . Derelict Logs Recovered 1 | . . 1 . . . . . . . . . Drone Launches . | . . . . . . . . . . . . Drone Recoveries . | . . . . . . . . . . . . Exploration | -11 -10 -10 -9 -9 -9 -8 -8 -8 -8 -8 -8 ------------- Run | Jun Mat Min Mat Min Exi Min Mat Gar Mat Sto Gar Turns Passed 4986 | 76 34 288 278 297 498 243 20 1120 996 479 657 Spaces Moved 3302 | 35 31 206 145 160 424 201 21 695 692 401 291 Core 3 | . . . . . 3 . . . . . . Treads . | . . . . . . . . . . . . Legs 2639 | 27 . . . . 311 201 21 695 692 401 291 Wheels 660 | 8 31 206 145 160 110 . . . . . . Hover . | . . . . . . . . . . . . Flight . | . . . . . . . . . . . . Fastest Speed 45 | 80 80 110 110 140 90 90 90 45 45 60 103 Average Speed 109 | 110 102 113 145 140 111 90 90 118 93 72 149 Slowest Speed 850 | 120 110 140 155 140 850 90 90 170 107 100 184 Overloaded Moves 396 | . . . . . . . . 2 109 285 . Propulsion Burnouts . | . . . . . . . . . . . . Robots Hopped . | . . . . . . . . . . . . Cave-ins Triggered . | . . . . . . . . . . . . Exploration Rate (%) 43 | 4 10 54 20 40 87 36 4 92 58 69 42 Regions Visited 11 Branch Regions 5 Pre-discovered Areas 1 | . . . 1 . . . . . . . . Known Exits Taken 7 | . . . 1 1 1 1 1 . 1 1 . Unknown Exits Taken 3 | 1 1 1 . . . . . . . . . Scrap Searched 1 | . . . . . . 1 . . . . . Spaces Dug 38 | . . . . . . . . . 15 21 2 Terrain Destroyed 340 | . . . . . . 26 . 195 55 62 2 Melee . | . . . . . . . . . . . . Projectile 67 | . . . . . . . . . 47 18 2 AOE 273 | . . . . . . 26 . 195 8 44 . Terrain Rammed . | . . . . . . . . . . . . Walls Destroyed . | . . . . . . . . . . . . Machines Disabled . | . . . . . . . . . . . . Actions | -11 -10 -10 -9 -9 -9 -8 -8 -8 -8 -8 -8 --------- Run | Jun Mat Min Mat Min Exi Min Mat Gar Mat Sto Gar Total 4219 | 53 33 236 180 220 451 257 22 918 908 524 417 Wait 382 | 3 . 11 4 45 7 50 . 71 91 42 58 Move 3293 | 34 30 205 144 159 423 200 21 694 691 401 291 Hop . | . . . . . . . . . . . . Pick Up 69 | 2 1 7 9 4 6 1 . 20 11 7 1 Fast Attach 28 | . . . 1 . 1 . . . 12 10 4 Attach 22 | 1 . 1 3 2 1 . 1 5 3 1 4 Detach 3 | . . . . . . . . . 1 2 . Swap 30 | 2 1 . 1 . 2 2 . 12 3 6 1 Drop 76 | 2 1 . 2 2 11 . . 16 21 16 5 Fire 267 | 9 . 12 16 8 . 4 . 56 75 39 48 Melee . | . . . . . . . . . . . . Ram . | . . . . . . . . . . . . Kick . | . . . . . . . . . . . . Crush . | . . . . . . . . . . . . Escape Stasis 20 | . . . . . . . . 15 . . 5 Rewire 29 | . . . . . . . . 29 . . . Trap . | . . . . . . . . . . . . Miscellaneous . | . . . . . . . . . . . . Route ------- -11/Junkyard -10/Materials -10/Mines -9/Materials (discovered 2 exits: Mat / *Min) -9/Mines -9/Exiles -8/Mines -8/Materials -8/Garrison (discovered 3 exits: *Mat x3) -8/Materials (discovered 2 exits: [*Fac] / *Sto) -8/Storage (discovered 2 exits: [*Fac] / Gar) -8/Garrison (discovered 3 exits: [*Fac x3]) History --------- Turn | Location | Event 1 | -11/Junkyard | Discovered new exit (range 3) 77 | -11/Junkyard | Entered Materials 90 | -10/Materials | Discovered new exit (range 12) 111 | -10/Materials | Entered Mines 131 | -10/Mines | Received a Rocket Launcher from a helpful Derelict 168 | -10/Mines | Met a Derelict bent on vengeance 194 | -10/Mines | Learned 2 Materials zone layouts 229 | -10/Mines | Discovered new exit (range 16) 296 | -10/Mines | Assembled infested the area 301 | -10/Mines | Assisted by a Guerilla fighting off Assembled 307 | -10/Mines | Received a Mining Laser from a helpful Derelict 317 | -10/Mines | Build established: Mutant 380 | -10/Mines | Core integrity fell below 50% 399 | -10/Mines | Entered Materials 399 | -9/Materials | Evolved 2 slots: Propulsion x1, Utility x1 400 | -9/Materials | Identified exit to Materials 635 | -9/Materials | Discovered new exit (range 16) 676 | -9/Materials | Identified exit to Mines 677 | -9/Materials | Entered Mines 681 | -9/Mines | Found the Drone Emporium 687 | -9/Mines | Found Prototype Device 948 | -9/Mines | Found a hidden stash of uninstalled traps 968 | -9/Mines | Deemed a non-threat by the Exiles lab entrance 968 | -9/Mines | Discovered new exit (range 5) 973 | -9/Mines | Identified exit to Exiles 974 | -9/Mines | Entered Exiles 1022 | -9/Exiles | Met 8R-AWN 1045 | -9/Exiles | Met EX-HEX 1089 | -9/Exiles | Met EX-BIN 1107 | -9/Exiles | Aligned with FarCom system 1109 | -9/Exiles | Given EX-Vault access code 1145 | -9/Exiles | Opened EX-Vault 1169 | -9/Exiles | Found Potential Leg 1179 | -9/Exiles | Found Potential Leg 1201 | -9/Exiles | Warned to stay clear of 0b10 Research branches 1225 | -9/Exiles | Met EX-DEC 1321 | -9/Exiles | Visited The Gauntlet 1464 | -9/Exiles | Discovered new exit (range 10) 1471 | -9/Exiles | Identified exit to Mines 1472 | -9/Exiles | Left Exiles lab with Potential Leg 1472 | -9/Exiles | Entered Mines 1683 | -8/Mines | Discovered exit to Materials (range 7) 1715 | -8/Mines | Entered Materials 1715 | -8/Materials | Evolved 2 slots: Propulsion x1, Utility x1 1735 | -8/Materials | Identified exit to Garrison 1735 | -8/Materials | Entered Garrison 1769 | -8/Garrison | Triggered checkpoint 1769 | -8/Garrison | Garrison Relay disabled 1802 | -8/Garrison | Destroyed 7 combat bots 1812 | -8/Garrison | Identified exit to Materials 1856 | -8/Garrison | Triggered checkpoint 1918 | -8/Garrison | Discovered exit to Materials (range 25) 1918 | -8/Garrison | Discovered exit to Materials (range 72) 1918 | -8/Garrison | Discovered exit to Materials (range 78) 1937 | -8/Garrison | Phase Generator disabled 2062 | -8/Garrison | Triggered checkpoint 2108 | -8/Garrison | Triggered checkpoint 2122 | -8/Garrison | Garrison Relay disabled 2180 | -8/Garrison | Installed Relay Interface Framework 2332 | -8/Garrison | Triggered checkpoint 2391 | -8/Garrison | Garrison Relay disabled 2606 | -8/Garrison | Triggered checkpoint 2762 | -8/Garrison | Build established: Scavenger-Mutant 2786 | -8/Garrison | Garrison Relay disabled 2855 | -8/Garrison | Entered Materials 2855 | -8/Materials | Accompanied by 1 ally 3400 | -8/Materials | Identified exit to Storage 3443 | -8/Materials | Build established: Mutant 3528 | -8/Materials | Discovered new exit (range 12) 3851 | -8/Materials | Entered Storage 4091 | -8/Storage | Destroyed 7 combat bots 4182 | -8/Storage | Build established: Hacker-Mutant 4220 | -8/Storage | Discovered new exit (range 10) 4330 | -8/Storage | Identified exit to Garrison 4330 | -8/Storage | Entered Garrison 4374 | -8/Garrison | Triggered checkpoint 4518 | -8/Garrison | Discovered new exit (range 44) 4518 | -8/Garrison | Discovered new exit (range 66) 4518 | -8/Garrison | Discovered new exit (range 76) 4530 | -8/Garrison | Garrison Relay disabled 4580 | -8/Garrison | Triggered checkpoint 4664 | -8/Garrison | Triggered checkpoint 4740 | -8/Garrison | Expanded RIF knowledge: Patrol Navigation 4774 | -8/Garrison | Learned Factory security intel 4792 | -8/Garrison | Garrison Relay disabled 4806 | -8/Garrison | Triggered checkpoint 4819 | -8/Garrison | Core integrity fell below 50% 4888 | -8/Garrison | Expanded RIF knowledge: Threat Obfuscation 4986 | -8/Garrison | Triggered checkpoint 4987 | -8/Garrison | Self-destructed Last Messages --------------- 04813_ Potential Leg destroyed. 04821_ Aluminum Leg destroyed. 04823_ G-47 Trooper destroyed. 04838_ Dropped Cld. Ion Engine. 04838_ Acquired Lgt. Nuclear Core. 04842_ Acquired 10 matter. 04845_ Acquired Aluminum Leg. 04849_ System corrupted: Component data lost. 04849_ Acquired Aluminum Leg. 04851_ Acquired 20 matter. Initiating installation procedure... 04887_ System corrupted: Substantial component data lost. 04888_ Expanded RIF knowledge: Threat Obfuscation. 04902_ H|#WNQK4KYEMN/ZO3|K42GWRHCCI0L 04943_ Dropped Lgt. Nuclear Core. 04943_ Discarded Hacking Suite. 04945_ Discarded System Shield. 04954_ System corrupted: Energy discharge (-38). 04969_ System corrupted: Energy discharge (-46). 04986_ Beams of light sweep through the air. An alarm sounds. Map ----- +----------------------------------------------------+ | ########## #?????????????????# #????# #?????????# | | ?????????# #?????????????????# #????# ########### | | ?????????# #?????????????????# #????# ##"""## | | ?????????# #?????????????????# #????#"### ##" "## | | ?????????# #?????????????????# #????# #?#^##" "## | | ?????????# #?????????????????# #????# #?#^##" "## | | ???####### ###########???????#*#????# #?# ## ^## | | ???# ^^ #??????##"######+### ### ### | | ???#=##### ^^ #??????# | | ???#*#???# ######## #??????# | | ####%#####* ####???# #??????# ######+## ####### | | %!!= %[ + ##### #??????# ###### ## #?????? | | ########## ## + #??????# + ## #?????? | | #???????#T ## ##### #??????# ##### ### #?????? | | #???????## ## #???# ######## #???# #?# #?????? | | ?????????# ## #???# ## %% ## #???# #?# #?????? | | ?????????# ## #??## ## ! ## ##??# #?# #?????? | | ########## ##+#### %[ ####+### #?????? | | " #?????? | | ########## % #?????? | | ?????????########## ## ## ###########?????? | | ????????????????### ## ## ###?????????????? | | ????????????????# "g#?????????????? | | ????????????????# " #?????????????? | | ????????????????# "g####??????????? | | ????????????????# @ "g+ #??????????? | | ????????????????### ^^## ## #### #??????????? | | ????????###########^^^## ## ####+############ | | ????????# | | ????????# ###### | | ????????# ###+#### #????? | | ????????# #?# #??## ## ##g #####+###^ #????? | | ????????# #?# #???# ##ggg ## #???# #?# #####? | | ######### ### ##### ######## #???# #?# ^+ #? | | + + #??????# #???# #?# ### #? | | ######### ##### ### #??????# #???# #?# ###+## | | ######### #???# #?#^^#??????# g#???# #?# ## # | | + ## #####+### #??????# #####+### ##"""# | | ###### ## #??????# g | | #????# ## #??????# g | | #????# ## ############??????# ######### ###+## | | #????# ## #?????????????????# #???????# #?# #? | | ###### ## #?????????????????# #???????# #?# #? | | + + #??????????????#### #???????# #?# #? | | # ##### #??????????????#]]# ##??????# ###+## | | """""#??# #??????????????# !#??????# | | ######??# #??????????????# !#??????# | | ????????# #??????????????# !######## ##"""# | | ????????# #??????????????# + + ## # | | ????????# #??????????????# !######## ###+## | +----------------------------------------------------+ Best States ------------- Heat Dissipation 45 Energy Generation 14 Energy Capacity 280 Matter Stores 300 Matter Capacity 300 Sight Range 16 Terrain Scan Density 10 Armor Coverage 450 Resistance: KI 20 Evasion (%) 63 Targeting Accuracy 8 Particle Charging 15 Offensive Hacking 10 Defensive Hacking 10 Item Schematics ----------------- None Robot Schematics ------------------ None Fabricated ------------ Nothing Alien Tech Used ----------------- None Achievements -------------- None Challenges ------------ None Game ------ Seed GravmagScatterMegatreads Manual? 0 Play Time 01:15:50 Cumulative 422.2 hours Start 2023.03.06 @ 17:05:31 End 2023.03.07 @ 06:07:11 Sessions 3 Manual Loads 0 Difficulty Rogue Special Mode None Game No. 478 Rogue 478 Adventurer 0 Explorer 0 Win Type - Total 0 Types 0/0/0/0/0/0/0/0/0 Lore% 56 Gallery% 77 Achievement% 63 Wizard Run 0 Options --------- ASCII 0 Keyboard 0 Movement Mouse Keybinds 0 Fullscreen 2 Font 24/Smallcaps Map View 76x50 Tactical HUD 1 Map Filters NONE Filters NONE Steam 1 RUN: ec67dec4-5564-4dbc-a70d-376256e16f70